[Event "*** Titled Tuesday Blitz"]
[Site "Chess.com"]
[Date "2020.11.10"]
[Round "1"]
[White "AlexSuv"]
[Black "northridgehawk"]
[Result "1-0"]
[WhiteElo "2568"]
[BlackElo "2244"]
[TimeControl "180+1"]
[EndTime "10:07:26 PST"]
[Termination "AlexSuv won by resignation"]

1. d4 {[%clk 0:03:00.9]} 1... Nf6 {[%clk 0:02:57.8]} 2. c4 {[%clk 0:03:01.5]}
2... g6 {[%clk 0:02:54.7]} 3. Nc3 {[%clk 0:03:01.7]} 3... d5 {[%clk 0:02:55]} 4.
Nf3 {[%clk 0:03:00.5]} 4... Bg7 {[%clk 0:02:54.9]} 5. Qb3 {[%clk 0:02:59.2]}
5... dxc4 {[%clk 0:02:54.1]} 6. Qxc4 {[%clk 0:03:00]} 6... O-O {[%clk
0:02:54.4]} 7. e4 {[%clk 0:03:00.5]} 7... Nc6 {[%clk 0:02:51]} 8. Be2 {[%clk
0:02:56.9]} 8... Bg4 {[%clk 0:02:48.7]} 9. d5 {[%clk 0:02:56.6]} 9... Bxf3
{[%clk 0:02:46.5]} 10. gxf3 {[%clk 0:02:54.1]} 10... Ne5 {[%clk 0:02:46]} 11.
Qb3 {[%clk 0:02:53.9]} 11... c6 {[%clk 0:02:41.4]} 12. f4 {[%clk 0:02:44]} 12...
Ned7 {[%clk 0:02:37.3]} 13. dxc6 {[%clk 0:02:42.1]} 13... bxc6 {[%clk
0:02:38.2]} 14. Be3 {[%clk 0:02:41.9]} 14... Qa5 {[%clk 0:02:34.8]} 15. O-O-O
{[%clk 0:02:37.8]} 15... Rab8 {[%clk 0:02:29.7]} 16. Qa4 {[%clk 0:02:30]} 16...
Qc7 {[%clk 0:02:10.9]} 17. e5 {[%clk 0:02:27]} 17... Nd5 {[%clk 0:02:06.7]} 18.
Nxd5 {[%clk 0:02:27.1]} 18... cxd5+ {[%clk 0:02:06.3]} 19. Kb1 {[%clk
0:02:27.5]} 19... Nxe5 {[%clk 0:01:58.5]} 20. fxe5 {[%clk 0:02:07.4]} 20... Qxe5
{[%clk 0:01:59.4]} 21. Rd4 {[%clk 0:02:05.6]} 21... Rfc8 {[%clk 0:01:50.5]} 22.
Rhd1 {[%clk 0:01:50.6]} 22... Qe4+ {[%clk 0:01:28.7]} 23. Bd3 {[%clk 0:01:36.8]}
23... Bxd4 {[%clk 0:01:16.5]} 24. Qxd4 {[%clk 0:01:30.8]} 24... Qf3 {[%clk
0:01:01.2]} 25. Bc2 {[%clk 0:01:19.1]} 25... Qe2 {[%clk 0:00:38.8]} 26. Qd3
{[%clk 0:01:12.6]} 26... Qg4 {[%clk 0:00:19.1]} 27. Qxd5 {[%clk 0:01:07.4]}
27... Rd8 {[%clk 0:00:16.1]} 28. Qh1 {[%clk 0:01:00.2]} 28... Rdc8 {[%clk
0:00:14.5]} 29. Bb3 {[%clk 0:00:56.4]} 29... a5 {[%clk 0:00:13.2]} 30. Qd5
{[%clk 0:00:49.6]} 30... e6 {[%clk 0:00:06.6]} 31. Qd4 {[%clk 0:00:46.3]} 31...
Qf5+ {[%clk 0:00:06.1]} 32. Ka1 {[%clk 0:00:43.2]} 32... a4 {[%clk 0:00:05.8]}
33. Bxa4 {[%clk 0:00:42.1]} 33... Rd8 {[%clk 0:00:04.3]} 34. Qc3 {[%clk
0:00:37.5]} 34... Rxd1+ {[%clk 0:00:01.4]} 35. Bxd1 {[%clk 0:00:36.9]} 35... e5
{[%clk 0:00:02.3]} 36. Bb3 {[%clk 0:00:35.3]} 36... Qc8 {[%clk 0:00:01.8]} 37.
Qxc8+ {[%clk 0:00:33.4]} 37... Rxc8 {[%clk 0:00:02.7]} 38. a4 {[%clk 0:00:34.1]}
38... Kg7 {[%clk 0:00:03.6]} 39. a5 {[%clk 0:00:32.9]} 39... f5 {[%clk
0:00:04.5]} 40. a6 {[%clk 0:00:33]} 40... f4 {[%clk 0:00:05.4]} 41. Bb6 {[%clk
0:00:29.3]} 41... e4 {[%clk 0:00:05.8]} 42. a7 {[%clk 0:00:27.7]} 42... Rc1+
{[%clk 0:00:06.7]} 43. Ka2 {[%clk 0:00:27.6]} 43... Rc8 {[%clk 0:00:06.6]} 44.
Bd5 {[%clk 0:00:27.2]} 44... Rd8 {[%clk 0:00:06.9]} 45. a8=Q {[%clk 0:00:26.9]}
45... Rxa8+ {[%clk 0:00:06.7]} 46. Bxa8 {[%clk 0:00:25.8]} 46... e3 {[%clk
0:00:07.6]} 47. fxe3 {[%clk 0:00:25.7]} 47... f3 {[%clk 0:00:07.8]} 48. Bxf3
{[%clk 0:00:25.6]} 1-0

[Event "*** Titled Tuesday Blitz"]
[Site "Chess.com"]
[Date "2020.11.10"]
[Round "1"]
[White "Vamostodorecto"]
[Black "vovachesss"]
[Result "0-1"]
[WhiteElo "2348"]
[BlackElo "2686"]
[TimeControl "180+1"]
[EndTime "10:07:27 PST"]
[Termination "vovachesss won by resignation"]

1. d4 {[%clk 0:03:00.9]} 1... Nf6 {[%clk 0:02:59.8]} 2. c4 {[%clk 0:03:01.5]}
2... c6 {[%clk 0:02:59.6]} 3. Nc3 {[%clk 0:03:01.9]} 3... d5 {[%clk 0:03:00.2]}
4. Nf3 {[%clk 0:03:02]} 4... dxc4 {[%clk 0:02:59.9]} 5. a4 {[%clk 0:03:00.4]}
5... Bg4 {[%clk 0:02:58.1]} 6. Ne5 {[%clk 0:03:00.9]} 6... Nbd7 {[%clk 0:02:58]}
7. Nxg4 {[%clk 0:02:57.1]} 7... Nxg4 {[%clk 0:02:58.9]} 8. e4 {[%clk 0:02:57.1]}
8... e5 {[%clk 0:02:59.5]} 9. d5 {[%clk 0:02:55.6]} 9... Ngf6 {[%clk 0:02:19.3]}
10. dxc6 {[%clk 0:02:53.9]} 10... bxc6 {[%clk 0:02:20.2]} 11. Bxc4 {[%clk
0:02:52.4]} 11... Bc5 {[%clk 0:02:19]} 12. O-O {[%clk 0:02:29.7]} 12... O-O
{[%clk 0:02:18.1]} 13. Bg5 {[%clk 0:02:28.2]} 13... Qb6 {[%clk 0:02:11.7]} 14.
Qc2 {[%clk 0:02:18.6]} 14... a5 {[%clk 0:02:07.6]} 15. Kh1 {[%clk 0:02:04.9]}
15... h6 {[%clk 0:01:52.6]} 16. Bh4 {[%clk 0:02:03.8]} 16... Rab8 {[%clk
0:01:49]} 17. b3 {[%clk 0:02:01.9]} 17... Bd4 {[%clk 0:01:44.9]} 18. Rac1 {[%clk
0:01:58.3]} 18... Nh5 {[%clk 0:01:26.9]} 19. Ne2 {[%clk 0:01:44]} 19... Bc5
{[%clk 0:01:11.1]} 20. Rfd1 {[%clk 0:01:35.5]} 20... Rb7 {[%clk 0:01:09.4]} 21.
Ng3 {[%clk 0:01:16.2]} 21... Bxf2 {[%clk 0:01:03.2]} 22. Nxh5 {[%clk 0:01:03.7]}
22... Bxh4 {[%clk 0:01:03.2]} 23. Rf1 {[%clk 0:00:59.4]} 23... Nf6 {[%clk
0:00:52.4]} 24. Nxf6+ {[%clk 0:00:47.1]} 24... Bxf6 {[%clk 0:00:53.3]} 25. Rxf6
{[%clk 0:00:45.9]} 25... gxf6 {[%clk 0:00:54.2]} 26. Qe2 {[%clk 0:00:45.5]}
26... Kh7 {[%clk 0:00:51.1]} 27. Rf1 {[%clk 0:00:41.2]} 27... Qd8 {[%clk
0:00:43.2]} 28. Qh5 {[%clk 0:00:32.7]} 28... Rg8 {[%clk 0:00:41.8]} 29. Qf5+
{[%clk 0:00:18]} 29... Rg6 {[%clk 0:00:41.9]} 30. h4 {[%clk 0:00:17.1]} 30...
Kg7 {[%clk 0:00:42]} 31. Rf3 {[%clk 0:00:15.1]} 31... Rd7 {[%clk 0:00:38.3]} 32.
Kh2 {[%clk 0:00:14]} 32... Rd2 {[%clk 0:00:37.8]} 33. Bf1 {[%clk 0:00:10.3]}
33... Qd7 {[%clk 0:00:23.4]} 34. Qh5 {[%clk 0:00:08.8]} 34... Rb2 {[%clk
0:00:16.8]} 35. Rd3 {[%clk 0:00:07.7]} 35... Rbxg2+ {[%clk 0:00:12.4]} 36. Bxg2
{[%clk 0:00:06.7]} 36... Qxd3 {[%clk 0:00:12.6]} 37. Qf5 {[%clk 0:00:06.2]}
37... Qg3+ {[%clk 0:00:12.8]} 0-1

[Event "*** Titled Tuesday Blitz"]
[Site "Chess.com"]
[Date "2020.11.10"]
[Round "1"]
[White "anpospan"]
[Black "Harsha_Bharathakoti"]
[Result "0-1"]
[WhiteElo "2407"]
[BlackElo "2825"]
[TimeControl "180+1"]
[EndTime "10:07:30 PST"]
[Termination "Harsha_Bharathakoti won by resignation"]

1. Nf3 {[%clk 0:02:59.7]} 1... d5 {[%clk 0:02:58.1]} 2. b3 {[%clk 0:02:59.5]}
2... Bg4 {[%clk 0:02:54.3]} 3. Bb2 {[%clk 0:02:59.2]} 3... Bxf3 {[%clk
0:02:54.3]} 4. exf3 {[%clk 0:02:59.3]} 4... e6 {[%clk 0:02:51.6]} 5. f4 {[%clk
0:02:59.1]} 5... Nf6 {[%clk 0:02:51.6]} 6. g3 {[%clk 0:02:58.4]} 6... g6 {[%clk
0:02:51.9]} 7. Bg2 {[%clk 0:02:57.8]} 7... Bg7 {[%clk 0:02:52.4]} 8. O-O {[%clk
0:02:57.6]} 8... O-O {[%clk 0:02:53]} 9. d3 {[%clk 0:02:56.8]} 9... Ne8 {[%clk
0:02:52]} 10. Bxg7 {[%clk 0:02:55.5]} 10... Nxg7 {[%clk 0:02:52.9]} 11. Nc3
{[%clk 0:02:53.5]} 11... Nd7 {[%clk 0:02:52.7]} 12. a4 {[%clk 0:02:52.3]} 12...
a5 {[%clk 0:02:52.6]} 13. Qf3 {[%clk 0:02:46.4]} 13... c6 {[%clk 0:02:52.6]} 14.
Ne2 {[%clk 0:02:35.1]} 14... Qf6 {[%clk 0:02:48.4]} 15. d4 {[%clk 0:02:25.5]}
15... Nf5 {[%clk 0:02:41.9]} 16. c3 {[%clk 0:02:24.2]} 16... Nd6 {[%clk
0:02:37.9]} 17. Qe3 {[%clk 0:02:19.5]} 17... Rac8 {[%clk 0:02:28.3]} 18. b4
{[%clk 0:01:45]} 18... Nc4 {[%clk 0:02:25.9]} 19. Qd3 {[%clk 0:01:39.6]} 19...
Ra8 {[%clk 0:02:25.9]} 20. h4 {[%clk 0:01:31.7]} 20... Ndb6 {[%clk 0:02:21.2]}
21. Rfb1 {[%clk 0:01:19.7]} 21... Ra7 {[%clk 0:02:02.2]} 22. Kh2 {[%clk
0:01:16.6]} 22... axb4 {[%clk 0:01:38.9]} 23. Rxb4 {[%clk 0:01:14.3]} 23... Rfa8
{[%clk 0:01:39.4]} 24. Qc2 {[%clk 0:01:11.9]} 24... Nc8 {[%clk 0:01:28.2]} 25.
Rab1 {[%clk 0:01:00.1]} 25... N8d6 {[%clk 0:01:27.4]} 26. Nc1 {[%clk 0:00:53.9]}
26... Na3 {[%clk 0:01:27.3]} 27. Qb3 {[%clk 0:00:48.8]} 27... Nxb1 {[%clk
0:01:27.1]} 28. Qxb1 {[%clk 0:00:49]} 28... Rxa4 {[%clk 0:01:27.4]} 29. Nd3
{[%clk 0:00:47.4]} 29... Ra1 {[%clk 0:01:22.4]} 30. Qc2 {[%clk 0:00:35.6]} 30...
R8a2 {[%clk 0:01:11.8]} 31. Rb2 {[%clk 0:00:34.6]} 31... Rxb2 {[%clk 0:01:07.8]}
32. Qxb2 {[%clk 0:00:34.6]} 32... Ra8 {[%clk 0:01:06.9]} 33. Ne5 {[%clk
0:00:31.7]} 33... Qe7 {[%clk 0:01:04.4]} 34. Qb4 {[%clk 0:00:25]} 34... Kg7
{[%clk 0:00:59.1]} 35. h5 {[%clk 0:00:21.9]} 35... Nf5 {[%clk 0:00:45.2]} 36.
Qb1 {[%clk 0:00:14.2]} 36... f6 {[%clk 0:00:44.6]} 37. Nf3 {[%clk 0:00:10.7]}
37... Nd6 {[%clk 0:00:40.6]} 38. Bh3 {[%clk 0:00:08.5]} 38... Ne4 {[%clk
0:00:39.2]} 39. c4 {[%clk 0:00:07.5]} 39... Nxf2 {[%clk 0:00:34.4]} 40. Nh4
{[%clk 0:00:06.4]} 40... Nxh3 {[%clk 0:00:32.5]} 41. hxg6 {[%clk 0:00:06]} 41...
Rh8 {[%clk 0:00:27.3]} 42. gxh7 {[%clk 0:00:03.7]} 42... Nxf4 {[%clk 0:00:25.5]}
43. gxf4 {[%clk 0:00:01.5]} 43... Rxh7 {[%clk 0:00:26]} 44. Qg6+ {[%clk
0:00:01.5]} 44... Kf8 {[%clk 0:00:26.5]} 45. Kg3 {[%clk 0:00:01.8]} 45... Rg7
{[%clk 0:00:25.9]} 0-1

[Event "*** Titled Tuesday Blitz"]
[Site "Chess.com"]
[Date "2020.11.10"]
[Round "1"]
[White "Infernal_XaM"]
[Black "Vasily85"]
[Result "1-0"]
[WhiteElo "2816"]
[BlackElo "2405"]
[TimeControl "180+1"]
[EndTime "10:07:31 PST"]
[Termination "Infernal_XaM won by resignation"]

1. d4 {[%clk 0:02:59]} 1... Nf6 {[%clk 0:02:57.1]} 2. c4 {[%clk 0:02:58.7]} 2...
e6 {[%clk 0:02:57]} 3. Nc3 {[%clk 0:02:59]} 3... Bb4 {[%clk 0:02:56.9]} 4. e3
{[%clk 0:02:59.4]} 4... O-O {[%clk 0:02:56.3]} 5. Ne2 {[%clk 0:02:59.6]} 5... c6
{[%clk 0:02:51.3]} 6. a3 {[%clk 0:02:59]} 6... Ba5 {[%clk 0:02:51.4]} 7. b4
{[%clk 0:02:53.1]} 7... Bc7 {[%clk 0:02:51.6]} 8. e4 {[%clk 0:02:53.5]} 8... a5
{[%clk 0:02:06.8]} 9. b5 {[%clk 0:02:52.6]} 9... d5 {[%clk 0:02:05.2]} 10. e5
{[%clk 0:02:49.6]} 10... Ne4 {[%clk 0:01:53.1]} 11. Nxe4 {[%clk 0:02:35.7]}
11... dxe4 {[%clk 0:01:54]} 12. Nc3 {[%clk 0:02:34.4]} 12... c5 {[%clk
0:01:53.1]} 13. Be3 {[%clk 0:02:32.9]} 13... cxd4 {[%clk 0:01:22.7]} 14. Qxd4
{[%clk 0:02:31.8]} 14... Qxd4 {[%clk 0:01:19.9]} 15. Bxd4 {[%clk 0:02:31.7]}
15... Nd7 {[%clk 0:01:20.8]} 16. Nxe4 {[%clk 0:02:29.3]} 16... Bxe5 {[%clk
0:01:14.4]} 17. O-O-O {[%clk 0:02:13.6]} 17... b6 {[%clk 0:01:09.5]} 18. Be3
{[%clk 0:02:05]} 18... Rd8 {[%clk 0:00:44.9]} 19. Bxb6 {[%clk 0:02:02.7]} 19...
Re8 {[%clk 0:00:43.9]} 20. Be3 {[%clk 0:02:02.1]} 20... Bb7 {[%clk 0:00:42.8]}
21. Nd6 {[%clk 0:01:59.9]} 21... Bxd6 {[%clk 0:00:42.4]} 22. Rxd6 {[%clk
0:02:00.3]} 22... Ne5 {[%clk 0:00:38.6]} 23. Kb2 {[%clk 0:01:59.8]} 23... Kf8
{[%clk 0:00:19.6]} 24. Kc3 {[%clk 0:01:56.3]} 24... Ke7 {[%clk 0:00:18.7]} 25.
Rd2 {[%clk 0:01:52.9]} 25... Rec8 {[%clk 0:00:16.8]} 26. c5 {[%clk 0:01:52.7]}
26... Bd5 {[%clk 0:00:16.6]} 27. a4 {[%clk 0:01:50.4]} 27... Nd7 {[%clk
0:00:13.9]} 28. c6 {[%clk 0:01:49.1]} 28... Ne5 {[%clk 0:00:14]} 29. Bc5+ {[%clk
0:01:48.2]} 29... Kf6 {[%clk 0:00:13.8]} 30. Bd4 {[%clk 0:01:48.2]} 30... Kf5
{[%clk 0:00:14]} 31. Bxe5 {[%clk 0:01:39.6]} 31... Kxe5 {[%clk 0:00:14.9]} 32.
Be2 {[%clk 0:01:37.4]} 32... Bxg2 {[%clk 0:00:12.8]} 33. Rg1 {[%clk 0:01:35.5]}
33... Bxc6 {[%clk 0:00:12.7]} 34. bxc6 {[%clk 0:01:35.1]} 34... Rxc6+ {[%clk
0:00:13.6]} 35. Kb2 {[%clk 0:01:35.2]} 35... g6 {[%clk 0:00:14.5]} 36. Bb5
{[%clk 0:01:35.1]} 36... Rc5 {[%clk 0:00:14]} 37. Re1+ {[%clk 0:01:32.8]} 37...
Kf6 {[%clk 0:00:14.1]} 38. Rd3 {[%clk 0:01:28.7]} 38... Rf5 {[%clk 0:00:13.6]}
39. Re2 {[%clk 0:01:27.9]} 39... Rc8 {[%clk 0:00:13.9]} 40. Rc3 {[%clk
0:01:26.9]} 40... Rd8 {[%clk 0:00:13.3]} 41. h3 {[%clk 0:01:24.2]} 41... Rd4
{[%clk 0:00:13.3]} 42. Kc2 {[%clk 0:01:22.7]} 42... Rdf4 {[%clk 0:00:11.3]} 43.
Kd1 {[%clk 0:01:06.3]} 43... Rxf2 {[%clk 0:00:07.2]} 44. Rxf2 {[%clk 0:01:05]}
44... Rxf2 {[%clk 0:00:08.1]} 45. Rc5 {[%clk 0:01:05.4]} 45... e5 {[%clk
0:00:07.3]} 46. Be2 {[%clk 0:01:01.3]} 46... e4 {[%clk 0:00:07]} 47. Rxa5 {[%clk
0:01:01]} 47... Rh2 {[%clk 0:00:06.5]} 48. Bf1 {[%clk 0:00:57.6]} 48... Ke6
{[%clk 0:00:04.5]} 49. Ra6+ {[%clk 0:00:56.4]} 49... Ke5 {[%clk 0:00:04.6]} 50.
Ra7 {[%clk 0:00:56.2]} 50... f5 {[%clk 0:00:04.9]} 51. a5 {[%clk 0:00:55.4]}
51... f4 {[%clk 0:00:05]} 52. a6 {[%clk 0:00:55.8]} 52... Ra2 {[%clk 0:00:04.3]}
53. Bc4 {[%clk 0:00:54.5]} 53... f3 {[%clk 0:00:04.8]} 54. Bxa2 {[%clk
0:00:54.2]} 54... e3 {[%clk 0:00:04.3]} 55. Bc4 {[%clk 0:00:53.2]} 55... Kd4
{[%clk 0:00:03.7]} 56. Rc7 {[%clk 0:00:53.1]} 56... g5 {[%clk 0:00:02.3]} 57. a7
{[%clk 0:00:52.9]} 57... h5 {[%clk 0:00:02.9]} 58. a8=Q {[%clk 0:00:52.4]} 1-0

[Event "*** Titled Tuesday Blitz"]
[Site "Chess.com"]
[Date "2020.11.10"]
[Round "1"]
[White "grandcoach"]
[Black "keepitcoming"]
[Result "1/2-1/2"]
[WhiteElo "2102"]
[BlackElo "2506"]
[TimeControl "180+1"]
[EndTime "10:07:31 PST"]
[Termination "Game drawn by repetition"]

1. e4 {[%clk 0:03:00.7]} 1... c6 {[%clk 0:02:59.8]} 2. d4 {[%clk 0:02:59.6]}
2... d5 {[%clk 0:03:00.7]} 3. e5 {[%clk 0:02:59.7]} 3... Bf5 {[%clk 0:03:00]} 4.
Nf3 {[%clk 0:02:59.3]} 4... e6 {[%clk 0:02:59.9]} 5. Be2 {[%clk 0:02:58.7]} 5...
c5 {[%clk 0:02:59.9]} 6. Be3 {[%clk 0:02:51.3]} 6... Nc6 {[%clk 0:02:54.2]} 7.
dxc5 {[%clk 0:02:47.8]} 7... Bg4 {[%clk 0:02:35.7]} 8. Nbd2 {[%clk 0:02:30.8]}
8... Nge7 {[%clk 0:02:23.1]} 9. O-O {[%clk 0:02:26.5]} 9... Nf5 {[%clk
0:02:22.3]} 10. Bg5 {[%clk 0:02:12.6]} 10... Qc7 {[%clk 0:02:16.4]} 11. Nb3
{[%clk 0:02:05.5]} 11... Bxf3 {[%clk 0:02:01.5]} 12. Bxf3 {[%clk 0:01:58.4]}
12... Nxe5 {[%clk 0:02:01.1]} 13. Re1 {[%clk 0:01:54.9]} 13... Be7 {[%clk
0:01:56.6]} 14. Bf4 {[%clk 0:01:49.5]} 14... Bf6 {[%clk 0:01:48.4]} 15. Bxd5
{[%clk 0:01:40.8]} 15... O-O {[%clk 0:01:34.5]} 16. Qe2 {[%clk 0:01:23.5]} 16...
exd5 {[%clk 0:01:15.9]} 17. Bxe5 {[%clk 0:01:22.9]} 17... Qc6 {[%clk 0:01:07.9]}
18. Na5 {[%clk 0:01:17.2]} 18... Qxc5 {[%clk 0:00:55.8]} 19. Bxf6 {[%clk
0:01:16.9]} 19... gxf6 {[%clk 0:00:56.7]} 20. Qg4+ {[%clk 0:01:11.7]} 20... Ng7
{[%clk 0:00:56.8]} 21. Re3 {[%clk 0:01:10.4]} 21... Qc8 {[%clk 0:00:45]} 22. h3
{[%clk 0:00:56.4]} 22... Qxg4 {[%clk 0:00:42.8]} 23. hxg4 {[%clk 0:00:57.3]}
23... b6 {[%clk 0:00:43.1]} 24. Nc6 {[%clk 0:00:55.4]} 24... Ne6 {[%clk
0:00:36.4]} 25. Ne7+ {[%clk 0:00:55.2]} 25... Kh8 {[%clk 0:00:35.3]} 26. Nxd5
{[%clk 0:00:54.8]} 26... Kg7 {[%clk 0:00:32.4]} 27. Rd1 {[%clk 0:00:51.7]} 27...
Rac8 {[%clk 0:00:29.2]} 28. c3 {[%clk 0:00:50.2]} 28... Rc4 {[%clk 0:00:28.4]}
29. f3 {[%clk 0:00:48.5]} 29... Rd8 {[%clk 0:00:21.2]} 30. Kf2 {[%clk 0:00:42]}
30... Nf4 {[%clk 0:00:19.9]} 31. b3 {[%clk 0:00:25.3]} 31... Rc5 {[%clk
0:00:17.2]} 32. c4 {[%clk 0:00:25.4]} 32... b5 {[%clk 0:00:16.5]} 33. Re4 {[%clk
0:00:21.4]} 33... Nxd5 {[%clk 0:00:15.2]} 34. Red4 {[%clk 0:00:16.5]} 34... bxc4
{[%clk 0:00:13.6]} 35. bxc4 {[%clk 0:00:15.9]} 35... Ra5 {[%clk 0:00:13]} 36.
Rxd5 {[%clk 0:00:15.5]} 36... Rxa2+ {[%clk 0:00:12.8]} 37. Kg3 {[%clk
0:00:15.5]} 37... Rc8 {[%clk 0:00:13.2]} 38. c5 {[%clk 0:00:15.1]} 38... Rc2
{[%clk 0:00:12.3]} 39. Ra1 {[%clk 0:00:14.2]} 39... R8xc5 {[%clk 0:00:11.9]} 40.
Rxc5 {[%clk 0:00:14.4]} 40... Rxc5 {[%clk 0:00:12.8]} 41. Rxa7 {[%clk
0:00:14.3]} 41... Rc2 {[%clk 0:00:13]} 42. Ra5 {[%clk 0:00:14]} 42... Rc3 {[%clk
0:00:13.3]} 43. Rb5 {[%clk 0:00:13.9]} 43... Rc4 {[%clk 0:00:13.4]} 44. Ra5
{[%clk 0:00:13.8]} 44... Rb4 {[%clk 0:00:12.6]} 45. Rc5 {[%clk 0:00:13.5]} 45...
Rd4 {[%clk 0:00:12.2]} 46. Ra5 {[%clk 0:00:13.6]} 46... Rb4 {[%clk 0:00:12.3]}
47. Rc5 {[%clk 0:00:13.5]} 47... Rd4 {[%clk 0:00:12.6]} 48. Ra5 {[%clk
0:00:13.6]} 48... Rb4 {[%clk 0:00:12.9]} 1/2-1/2

[Event "*** Titled Tuesday Blitz"]
[Site "Chess.com"]
[Date "2020.11.10"]
[Round "1"]
[White "Korchmar_Vasiliy"]
[Black "kidagent"]
[Result "1-0"]
[WhiteElo "2618"]
[BlackElo "2303"]
[TimeControl "180+1"]
[EndTime "10:07:32 PST"]
[Termination "Korchmar_Vasiliy won by resignation"]

1. d4 {[%clk 0:03:00.9]} 1... d5 {[%clk 0:02:59.8]} 2. Nf3 {[%clk 0:03:00.6]}
2... Nf6 {[%clk 0:02:59.4]} 3. Bf4 {[%clk 0:03:01.2]} 3... c5 {[%clk 0:02:58.6]}
4. e3 {[%clk 0:03:01.4]} 4... cxd4 {[%clk 0:02:57.7]} 5. exd4 {[%clk 0:03:01.2]}
5... Nc6 {[%clk 0:02:57.6]} 6. Nbd2 {[%clk 0:02:58.1]} 6... Bg4 {[%clk
0:02:53.6]} 7. c3 {[%clk 0:02:53.5]} 7... e6 {[%clk 0:02:51.3]} 8. Qb3 {[%clk
0:02:53.1]} 8... Qb6 {[%clk 0:02:46.5]} 9. Qxb6 {[%clk 0:02:52.3]} 9... axb6
{[%clk 0:02:46]} 10. Bb5 {[%clk 0:02:45.5]} 10... Nd7 {[%clk 0:02:31.5]} 11. Ne5
{[%clk 0:02:38.5]} 11... Ndxe5 {[%clk 0:02:16.8]} 12. Bxe5 {[%clk 0:02:39.4]}
12... Kd7 {[%clk 0:02:07.1]} 13. O-O {[%clk 0:02:28.5]} 13... f6 {[%clk
0:02:05.3]} 14. Bg3 {[%clk 0:02:27.3]} 14... Bd6 {[%clk 0:02:04.8]} 15. Bxd6
{[%clk 0:02:05.2]} 15... Kxd6 {[%clk 0:02:04.8]} 16. Rfe1 {[%clk 0:02:05.2]}
16... Rhe8 {[%clk 0:02:00.1]} 17. f4 {[%clk 0:02:01.5]} 17... e5 {[%clk
0:01:53]} 18. fxe5+ {[%clk 0:02:00.4]} 18... fxe5 {[%clk 0:01:53.1]} 19. dxe5+
{[%clk 0:01:34.1]} 19... Rxe5 {[%clk 0:01:51.7]} 20. Rxe5 {[%clk 0:01:31.1]}
20... Nxe5 {[%clk 0:01:49.4]} 21. Nb3 {[%clk 0:01:22.4]} 21... Nc4 {[%clk
0:01:27.4]} 22. Bxc4 {[%clk 0:01:18.1]} 22... dxc4 {[%clk 0:01:27]} 23. Nd4
{[%clk 0:01:18.1]} 23... Bd7 {[%clk 0:01:24.8]} 24. a3 {[%clk 0:01:15.1]} 24...
Rf8 {[%clk 0:01:17.2]} 25. Rd1 {[%clk 0:01:13.7]} 25... Kc5 {[%clk 0:01:15.1]}
26. Re1 {[%clk 0:01:06.3]} 26... Rf7 {[%clk 0:01:13.1]} 27. h3 {[%clk 0:00:56]}
27... g6 {[%clk 0:01:07.5]} 28. g4 {[%clk 0:00:54]} 28... h5 {[%clk 0:01:06.7]}
29. gxh5 {[%clk 0:00:53.4]} 29... Bxh3 {[%clk 0:00:54.2]} 30. hxg6 {[%clk
0:00:53.2]} 30... Rg7 {[%clk 0:00:52.7]} 31. Re5+ {[%clk 0:00:53.6]} 31... Kd6
{[%clk 0:00:49.5]} 32. Rg5 {[%clk 0:00:54.5]} 32... Bd7 {[%clk 0:00:47]} 33. Kf2
{[%clk 0:00:51]} 33... Ke7 {[%clk 0:00:45.6]} 34. Ke3 {[%clk 0:00:40.8]} 34...
Kf6 {[%clk 0:00:45.1]} 35. Kf4 {[%clk 0:00:41.4]} 35... Bc8 {[%clk 0:00:18.9]}
36. Nf3 {[%clk 0:00:35.7]} 36... Bd7 {[%clk 0:00:18]} 37. Ne5 {[%clk 0:00:35.4]}
37... Be6 {[%clk 0:00:18.1]} 38. Nf3 {[%clk 0:00:24.6]} 38... Rc7 {[%clk
0:00:17.7]} 39. Nd2 {[%clk 0:00:21.3]} 39... Rg7 {[%clk 0:00:16.4]} 40. Ne4+
{[%clk 0:00:21.4]} 40... Ke7 {[%clk 0:00:16.6]} 41. Ke5 {[%clk 0:00:21.5]} 41...
Bd7 {[%clk 0:00:15]} 42. Nf6 {[%clk 0:00:16.7]} 42... Be6 {[%clk 0:00:15.2]} 43.
Nh5 {[%clk 0:00:16.6]} 43... Rg8 {[%clk 0:00:15.5]} 44. g7 {[%clk 0:00:17.1]}
44... Kf7 {[%clk 0:00:15.6]} 45. Nf6 {[%clk 0:00:14.8]} 45... Rxg7 {[%clk
0:00:15.3]} 46. Rxg7+ {[%clk 0:00:15.7]} 46... Kxg7 {[%clk 0:00:15.7]} 47. Kxe6
{[%clk 0:00:16.6]} 47... Kg6 {[%clk 0:00:16]} 48. Nd5 {[%clk 0:00:15.5]} 48...
b5 {[%clk 0:00:15.3]} 49. Nc7 {[%clk 0:00:15.7]} 1-0